[Event "44th Chess Olympiad Open 2022"]
[Site "Chennai"]
[Date "2022.08.01"]
[Round "4.21"]
[White "Tan, Justin"]
[Black "Esmeraldas Huachi, Anderson"]
[Result "1-0"]
[WhiteElo "2508"]
[BlackElo "2071"]
[Annotator "RC"]
[PlyCount "63"]
[EventDate "2022.??.??"]
[TimeControl "60"]

1. e4 {[%emt 0:00:48]} c6 {[%emt 0:00:36]} 2. d4 {[%emt 0:00:12]} d5 {[%emt 0:
00:00]} 3. e5 {[%emt 0:00:36]} c5 {[%emt 0:00:17]} 4. Nf3 {[%emt 0:00:14]} cxd4
{[%emt 0:00:22]} 5. Nxd4 {[%emt 0:00:08]} Nc6 {[%emt 0:00:07]} 6. Nxc6 {
[%emt 0:00:13]} bxc6 {[%emt 0:00:06]} 7. Bd3 {[%emt 0:00:17]} e6 {[%emt 0:00:
00]} 8. O-O {[%emt 0:00:27]} g6 {[%emt 0:10:33]} 9. Nd2 {[%emt 0:02:13]} Bg7 {
[%emt 0:02:10]} 10. Nf3 {[%emt 0:00:10]} Ne7 {[%emt 0:12:03]} 11. Be3 {[%emt 0:
00:00]} Qc7 {[%emt 0:05:24]} 12. c3 {[%emt 0:02:10]} c5 {[%emt 0:08:29]} 13.
Bb5+ {[%emt 0:08:57]} Kf8 {[%emt 0:04:44]} 14. b4 {[%emt 0:03:50]} c4 {[%emt 0:
00:00]} 15. Ba4 {[%emt 0:03:07]} Bd7 {[%emt 0:04:23]} 16. Bc2 {[%emt 0:02:11]}
Nc6 {[%emt 0:06:56]} 17. Bc5+ {[%emt 0:00:38]} Kg8 {[%emt 0:00:08]} 18. Bd6 {
[%emt 0:00:25]} Qd8 {[%emt 0:01:18]} 19. Qd2 {[%emt 0:10:06]} Bf8 {[%emt 0:00:
00]} 20. Bxf8 {[%emt 0:05:13]} Qxf8 {[%emt 0:00:16]} 21. Qf4 {[%emt 0:04:34]}
Qe7 {[%emt 0:14:00]} 22. h4 {[%emt 0:03:13]} h6 {[%emt 0:02:23]} 23. Rae1 {
[%emt 0:07:34]} Kg7 {[%emt 0:00:48]} 24. Re3 {[%emt 0:02:05]} Raf8 {[%emt 0:00:
00]} 25. b5 {[%emt 0:04:50]} Nd8 {[%emt 0:00:09]} 26. Nd4 {[%emt 0:00:25]} f5 {
[%emt 0:01:04]} 27. exf6+ {[%emt 0:00:30]} Qxf6 {[%emt 0:05:44]} 28. Qc7 {
[%emt 0:00:46]} Rf7 {[%emt 0:00:07]} 29. Rf3 {[%emt 0:02:59]} Qe7 {[%emt 0:00:
00]} 30. Qe5+ {[%emt 0:04:24]} Rf6 {[%emt 0:00:24]} 31. Rg3 {[%emt 0:01:28]}
Be8 {[%emt 0:00:26]} 32. Nf5+ {[%emt 0:01:14]} 1-0

[Event "44th Chess Olympiad Open 2022"]
[Site "Chennai"]
[Date "2022.08.01"]
[Round "4.21"]
[White "Matamoros Franco, Carlos S."]
[Black "Smirnov, Anton"]
[Result "0-1"]
[WhiteElo "2459"]
[BlackElo "2600"]
[Annotator "TA"]
[PlyCount "84"]
[EventDate "2022.??.??"]
[TimeControl "60"]

{[%evp 9,84,2,0,2,20,19,10,15,10,21,30,24,32,31,37,16,43,45,42,35,53,32,28,31,
33,28,24,15,7,12,16,0,0,0,0,-5,0,0,0,0,0,-22,0,-83,-80,-81,-63,-99,-80,-147,
-147,-146,-134,-140,-151,-200,-199,-238,-230,-258,-245,-271,-261,-313,-248,
-353,-356,-401,-389,-364,-332,-444,-319,-718,-702,-651,-647]} 1. Nf3 {[%emt 0:
00:00]} d5 {[%emt 0:00:33]} 2. g3 {[%emt 0:00:16]} Nd7 {[%emt 0:00:32]} 3. c4 {
[%emt 0:01:14]} dxc4 {[%emt 0:00:24]} 4. Bg2 {[%emt 0:00:05]} e5 {[%emt 0:00:
00]} 5. Qa4 {[%emt 0:00:32]} Bd6 {[%emt 0:01:06]} 6. Qxc4 {[%emt 0:01:29] A07:
Réti Opening: New York and Capablanca Systems.} Ngf6 {[%emt 0:03:54]} 7. d3 {
[%emt 0:02:21]} O-O {[%emt 0:01:36]} 8. O-O {[%emt 0:00:15] The position is
equal.} h6 $5 {[%emt 0:04:48] An interesting side line.} 9. Nbd2 {[%emt 0:03:
04]} c6 {[%emt 0:06:21]} 10. b3 {[%emt 0:05:04]} Re8 {[%emt 0:04:47]} 11. Bb2 {
[%emt 0:03:07]} Qe7 {[%emt 0:05:27]} 12. Qc2 {[%emt 0:12:12] [#]} Ba3 $146 {
[%emt 0:00:26]} ({Predecessor:} 12... Nb6 13. Nc4 Nxc4 14. Qxc4 Be6 15. Qc2 Bg4
16. h3 Bxf3 17. Bxf3 Qe6 18. Bg2 e4 19. dxe4 Nxe4 {½-½ (37) Blot, J (2299)
-Colin,V (2336) Le Mans 2002}) 13. Bxa3 {[%emt 0:00:36]} Qxa3 {[%emt 0:00:00]}
14. Nc4 {[%emt 0:00:41]} Qc5 {[%emt 0:04:37]} 15. e3 {[%emt 0:09:35][%cal
Yf3e5]} Qe7 {[%emt 0:03:13]} 16. e4 {[%emt 0:02:15]} c5 {[%emt 0:03:27]} 17. a3
{[%emt 0:10:54]} b6 {[%emt 0:02:04]} 18. Nh4 {[%emt 0:08:54]} g6 {[%emt 0:05:
18]} 19. Qd2 {[%emt 0:05:06]} Kh7 {[%emt 0:00:59]} 20. f4 {[%emt 0:00:00]} Ba6
{[%emt 0:18:23]} 21. Nf3 {[%emt 0:25:59]} Bxc4 {[%emt 0:00:00]} 22. bxc4 {
[%emt 0:00:01]} Rad8 {[%emt 0:00:00]} 23. Rae1 {[%emt 0:01:00]} Nh5 {[%emt 0:
00:00][%cal Yf6h5,Yh5g7,Yg7f5]} 24. Bh3 {[%emt 0:01:04]} exf4 {[%emt 0:00:00]}
25. gxf4 {[%emt 0:01:39]} Nf8 {[%emt 0:00:00]} 26. e5 {[%emt 0:01:53]} (26. Bg4
$1 $11) 26... Ne6 {[%emt 0:02:49] Black converts the advantage convincingly.}
27. Re4 {[%emt 0:01:26]} Nhg7 {[%emt 0:00:07]} 28. Kh1 {[%emt 0:00:36][%cal
Yf4f5]} Nf5 {[%emt 0:02:25]} 29. Kg1 {[%emt 0:01:28]} (29. Ng1 $142) 29... Qd7
$17 {[%emt 0:01:59]} 30. Rd1 {[%emt 0:00:04]} Qa4 {[%emt 0:00:00]} 31. Qc1 {
[%emt 0:00:40]} Rd7 {[%emt 0:01:09] Black is more active.} 32. Kf2 {[%emt 0:00:
32]} (32. Bf1 $17) 32... Red8 $19 {[%emt 0:00:47]} 33. Bf1 {[%emt 0:00:18]} a6
{[%emt 0:04:03][%cal Ya7a6,Ya6a5]} 34. Be2 {[%emt 0:00:31]} Qc6 {[%emt 0:00:59]
} 35. h4 {[%emt 0:00:23]} b5 {[%emt 0:00:44][%cal Yb6b5,Yb5b4]} 36. h5 {
[%emt 0:00:12]} b4 {[%emt 0:01:47]} 37. Qc2 {[%emt 0:01:23]} (37. axb4 $142
cxb4 38. c5) 37... a5 {[%emt 0:00:50]} ({Not} 37... bxa3 $2 38. hxg6+ fxg6 39.
Qd2 $19) ({Avoid the trap} 37... gxh5 $2 38. axb4 cxb4 39. Qb1 $19) 38. Bf1 {
[%emt 0:00:25]} Ned4 {[%emt 0:04:24]} 39. Nxd4 {[%emt 0:00:14]} Nxd4 {[%emt 0:
00:08] The board is on fire.} (39... cxd4 40. Bh3 $17) 40. Qc1 {[%emt 0:00:20]}
f5 {[%emt 0:03:44]} 41. Re3 {[%emt 0:00:00] [#]} (41. Rxd4 Rxd4 42. Bg2) 41...
gxh5 {[%emt 0:31:49]} ({And not} 41... Qh1 42. Rh3 Qc6 43. Bg2 $11) 42. Bg2 {
[%emt 0:00:37]} Qg6 {[%emt 0:00:07] Weighted Error Value: White=0.34/Black=0.
04 (flawless)} 0-1

[Event "44th Chess Olympiad Open 2022"]
[Site "Chennai"]
[Date "2022.08.01"]
[Round "4.21"]
[White "Noboa Silva, Kevin"]
[Black "Cheng, Bobby"]
[Result "0-1"]
[WhiteElo "2304"]
[BlackElo "2540"]
[Annotator "TA"]
[PlyCount "80"]
[EventDate "2022.??.??"]
[TimeControl "60"]

{[%evp 11,80,35,25,13,14,6,5,0,17,2,-6,-16,-14,-25,-18,-25,-22,-34,-22,-41,-20,
-39,-33,-58,-53,-49,-24,-22,0,0,0,0,0,-6,-8,-39,-31,-31,-52,-58,-18,-61,0,-56,
-68,-60,-62,-109,-111,-110,-102,-116,-109,-217,-208,-211,-135,-297,-294,-303,
-283,-266,-218,-206,-208,-227,-237,-557,-551,-520,-506]} 1. d4 {[%emt 0:00:05]}
d5 {[%emt 0:00:09]} 2. c4 {[%emt 0:00:16]} e6 {[%emt 0:00:07]} 3. Nc3 {[%emt 0:
00:00]} Nf6 {[%emt 0:00:17]} 4. cxd5 {[%emt 0:00:15]} exd5 {[%emt 0:00:09]} 5.
Bg5 {[%emt 0:00:13]} Bb4 {[%emt 0:00:29]} 6. e3 {[%emt 0:09:30]} h6 {[%emt 0:
00:00]} 7. Bxf6 {[%emt 0:02:03] D35: Queen's Gambit Declined: Exchange
Variation.} Qxf6 {[%emt 0:00:12]} 8. Qa4+ {[%emt 0:00:24]} Nc6 {[%emt 0:00:07]}
9. Bb5 {[%emt 0:00:45] Threatens to win with Qxb4. The position is equal.} O-O
{[%emt 0:05:39]} 10. Nge2 {[%emt 0:03:36]} a5 {[%emt 0:05:47]} 11. O-O {
[%emt 0:02:33]} Ne7 {[%emt 0:02:10] [#]} 12. Bd7 $146 {[%emt 0:11:01]} ({
Predecessor:} 12. Bd3 c6 13. e4 dxe4 14. Nxe4 Qg6 15. Qc2 Nd5 16. N4c3 Qf6 17.
Nxd5 cxd5 18. a3 {½-½ (37) Gareyev,T (2587)-Bora,S (2423) Indianapolis 2021})
12... c6 {[%emt 0:06:43]} 13. Bxc8 {[%emt 0:00:21]} Rfxc8 {[%emt 0:00:09]} 14.
Rac1 {[%emt 0:01:09]} Bd6 {[%emt 0:02:54]} 15. Qc2 {[%emt 0:01:50]} Bc7 {
[%emt 0:05:17]} 16. a3 {[%emt 0:12:43]} h5 {[%emt 0:04:19]} 17. e4 {[%emt 0:00:
00]} dxe4 {[%emt 0:18:28]} ({Reject} 17... Qh4 18. e5 $11) 18. Nxe4 {[%emt 0:
00:00]} Qg6 {[%emt 0:00:07]} 19. Nc5 {[%emt 0:05:05]} Qd6 {[%emt 0:00:59][%csl
Gc7][%cal Rd6h2]} 20. g3 {[%emt 0:01:09]} Rab8 {[%emt 0:00:50]} 21. Rcd1 {
[%emt 0:01:31]} Rd8 {[%emt 0:05:16]} 22. Rfe1 {[%emt 0:01:40]} Qf6 {[%emt 0:00:
00]} 23. Qe4 {[%emt 0:05:48]} Nf5 {[%emt 0:05:28]} 24. d5 {[%emt 0:06:28]} Bb6
{[%emt 0:06:21]} 25. b4 {[%emt 0:02:42]} cxd5 {[%emt 0:02:35]} (25... Bxc5 $5
26. bxc5 cxd5 $15) 26. Qf3 {[%emt 0:05:12]} g6 {[%emt 0:10:04]} ({Better is} 
26... Bxc5 $15 27. bxc5 d4) 27. Nf4 {[%emt 0:07:22]} (27. Nc3 $11) 27... Bxc5
$15 {[%emt 0:00:14]} 28. bxc5 {[%emt 0:00:14]} d4 {[%emt 0:00:13]} 29. Re4 {
[%emt 0:02:33] [#]} (29. Nd3 $15 {is superior.}) 29... Rbc8 $1 $17 {[%emt 0:00:
00]} 30. Nd3 {[%emt 0:01:33]} b6 {[%emt 0:01:26]} 31. cxb6 {[%emt 0:01:01]}
Qxb6 {[%emt 0:00:10]} 32. g4 {[%emt 0:04:32]} (32. h3 $17) 32... hxg4 $19 {
[%emt 0:04:46]} 33. Rxg4 {[%emt 0:00:07] Strongly threatening Qxf5.} Kf8 {
[%emt 0:01:00]} 34. Nf4 $2 {[%emt 0:01:57] Loses the game.} (34. h4 $17) 34...
Rc3 {[%emt 0:01:10]} 35. Qe4 {[%emt 0:00:35]} Re8 {[%emt 0:00:45] Inhibits Qe5.
} ({Worse is} 35... Rxa3 36. Qe5 Rf3 37. Qh8+ Ke7 38. Qe5+ Kf8 39. Qh8+ Ke7 40.
Qe5+ Kf8 $11) 36. Qd5 {[%emt 0:01:23]} Qc6 {[%emt 0:06:15]} ({Wrong is} 36...
Rxa3 $2 37. h4 $19) 37. Qxc6 {[%emt 0:02:25]} Rxc6 {[%emt 0:00:02]} 38. Ng2 {
[%emt 0:01:06]} d3 {[%emt 0:03:40][%cal Yd4d3,Yd3d2] And now ...d2! would win.}
39. Nf4 $2 {[%emt 0:00:56] [#]} (39. h4 {is more resistant.}) 39... Rc1 $3 {
[%emt 0:01:29]} 40. Rxc1 {[%emt 0:01:52]} d2 {[%emt 0:00:02] Weighted Error
Value: White=0.33/Black=0.09 (flawless)} 0-1

[Event "44th Chess Olympiad Open 2022"]
[Site "Chennai"]
[Date "2022.08.01"]
[Round "4.22"]
[White "Peralta, Fernando"]
[Black "Greet, Andrew N"]
[Result "1-0"]
[WhiteElo "2591"]
[BlackElo "2392"]
[Annotator "TA"]
[PlyCount "117"]
[EventDate "2022.??.??"]
[TimeControl "60"]

{[%evp 13,117,29,48,15,24,13,16,22,22,27,22,14,19,15,86,37,39,48,27,29,23,25,
19,8,13,31,35,29,27,22,32,13,31,-15,23,0,0,0,0,0,0,0,0,0,0,0,15,14,134,110,143,
126,213,113,112,111,266,254,262,267,249,158,151,141,152,153,157,140,149,143,
208,208,285,295,301,265,234,226,303,287,299,275,321,222,321,320,318,207,431,
427,422,413,344,279,658,665,849,720,939,893,29983,29984,29987,29988,29988,
29989]} 1. d4 {[%emt 0:00:03]} e6 {[%emt 0:00:08]} 2. c4 {[%emt 0:00:13]} f5 {
[%emt 0:00:07]} 3. g3 {[%emt 0:00:17]} Nf6 {[%emt 0:00:07]} 4. Bg2 {[%emt 0:00:
00]} d5 {[%emt 0:00:07]} 5. Nh3 {[%emt 0:00:23]} Bd6 {[%emt 0:00:19]} 6. O-O {
[%emt 0:00:07]} O-O {[%emt 0:00:05]} 7. Qc2 {[%emt 0:00:25]} c6 {[%emt 0:00:21]
} 8. Nf4 {[%emt 0:00:16] A90: Dutch Defence: Miscellaneous and Modern
Stonewall (with ...Bd6).} Qe7 {[%emt 0:15:32]} 9. Nd3 {[%emt 0:00:29]} b6 {
[%emt 0:00:27]} 10. Bf4 {[%emt 0:01:25] [#] The position is equal.} Ba6 $146 {
[%emt 0:01:42]} ({Predecessor:} 10... Bxf4 11. Nxf4 Bb7 12. Nd2 Nbd7 13. Rac1
Rac8 14. Qa4 a5 15. Qb3 Ba6 16. cxd5 cxd5 {½-½ (34) Sakalauskas,V (2404)
-Zeberski,J (2337) Poronin 2013}) 11. Nd2 {[%emt 0:14:50]} Ne4 {[%emt 0:01:27]}
12. cxd5 {[%emt 0:24:12]} cxd5 {[%emt 0:12:54]} 13. Rfc1 {[%emt 0:12:11]} Nd7 {
[%emt 0:00:00] [#]} (13... Bxd3 $11 {remains equal.} 14. Qxd3 Bxf4 15. gxf4 Nd7
) 14. Bxd6 {[%emt 0:02:57]} ({White should play} 14. Nxe4 $1 $16 fxe4 15. Qc6)
14... Qxd6 {[%emt 0:17:54]} 15. Nf3 {[%emt 0:00:32]} Rfc8 {[%emt 0:09:23]
Prevents Qc7.} 16. Qa4 {[%emt 0:00:22]} Bxd3 {[%emt 0:01:16]} 17. exd3 {
[%emt 0:00:07]} Nef6 {[%emt 0:09:53]} 18. Rc3 {[%emt 0:09:39]} Rxc3 {[%emt 0:
00:00]} 19. bxc3 {[%emt 0:01:38][%cal Yb2c3,Yc3c4]} Rc8 {[%emt 0:00:00]} 20. c4
{[%emt 0:02:03]} Rc7 {[%emt 0:01:39]} 21. Qb3 {[%emt 0:03:08]} h6 {[%emt 0:03:
51]} 22. a4 {[%emt 0:00:11]} g5 {[%emt 0:06:49]} 23. Re1 {[%emt 0:00:00]} (23.
Rd1 $14) 23... Kg7 {[%emt 0:07:00]} (23... g4 {looks sharper.} 24. Nh4 dxc4 25.
dxc4 Qxd4 26. Rxe6 Nc5) 24. Qc3 {[%emt 0:05:27]} dxc4 {[%emt 0:00:00]} 25. dxc4
{[%emt 0:00:15]} Ne4 {[%emt 0:00:07]} 26. Qc1 {[%emt 0:04:19]} Qb4 {[%emt 0:01:
57]} 27. Bf1 {[%emt 0:04:09]} Ndf6 {[%emt 0:00:50]} 28. Qa1 {[%emt 0:04:08]} g4
{[%emt 0:01:17]} 29. Nh4 {[%emt 0:00:47]} Qd2 {[%emt 0:00:00]} 30. Re2 {
[%emt 0:00:16]} Qg5 {[%emt 0:00:22]} (30... Qb4 $11) 31. d5 $16 {[%emt 0:01:25]
} exd5 {[%emt 0:00:30]} 32. cxd5 {[%emt 0:01:58]} Kf7 {[%emt 0:00:00]} (32...
Rc3 33. d6 Rc5 34. d7 $18) (32... Kh7 $16) 33. Qe5 {[%emt 0:00:00]} (33. d6 $18
Nxd6 34. Qe5 (34. f4 gxf3 35. Nxf3 Qc1 $15)) 33... Re7 {[%emt 0:00:17]} 34.
Qxf5 {[%emt 0:00:24]} Qxf5 $2 {[%emt 0:00:50] A mistake that costs the game.} (
34... Re8 $16 {was necessary.} 35. Rc2 Nc5) 35. Nxf5 $18 {[%emt 0:00:04]} Re5 {
[%emt 0:00:14]} 36. Nxh6+ {[%emt 0:01:31]} Kg7 {[%emt 0:00:00] [#]} 37. d6 $1 {
[%emt 0:00:48][%cal Yh6g4] Hoping for Nxg4!} Kxh6 {[%emt 0:00:14]} 38. Bg2 {
[%emt 0:00:05]} Rd5 {[%emt 0:01:02] And now ...Rd1+ would win.} 39. Bxe4 {
[%emt 0:00:04]} Rxd6 $16 {[%emt 0:00:07] Endgame KRB-KRN} 40. Bc2 {[%emt 0:00:
54]} Rc6 {[%emt 0:00:51]} 41. Kg2 {[%emt 0:06:17]} a6 {[%emt 0:04:42]} (41...
Rc3 $16 42. h4 gxh3+ 43. Kxh3 Nd5) 42. Bd3 $18 {[%emt 0:00:39]} a5 {[%emt 0:00:
38]} 43. Bb5 {[%emt 0:03:47]} Rd6 {[%emt 0:00:57]} 44. h3 {[%emt 0:03:02]}
gxh3+ {[%emt 0:00:07]} 45. Kxh3 {[%emt 0:00:02]} Nd5 {[%emt 0:04:08]} 46. Rc2 {
[%emt 0:02:43] Against Nc3} Kg7 {[%emt 0:04:10]} 47. Rc8 {[%emt 0:02:24]} Kf6 {
[%emt 0:05:06]} 48. Kg2 {[%emt 0:00:00] Strongly threatening f4.} Ke5 {[%emt 0:
00:27]} (48... Re6 {was worth a try.} 49. f4 Kg7) 49. Rc4 {[%emt 0:00:39]} Nf6
{[%emt 0:01:47]} 50. Rc2 {[%emt 0:05:33] Inhibits Rd2. f4+ is the strong
threat.} Ne4 $2 {[%emt 0:03:09]} (50... Rd4 {is a better defense.} 51. f4+ Ke4
52. Re2+ Kd5) 51. f4+ {[%emt 0:00:00]} Kf6 {[%emt 0:06:42]} 52. g4 {[%emt 0:01:
57][%cal Yg3g4,Yg4g5,Yg5g6]} Nc5 {[%emt 0:00:26]} 53. Kf3 {[%emt 0:00:50]} Nb3
$2 {[%emt 0:00:34]} (53... Rd4 54. Re2 Kf7) 54. Rc8 {[%emt 0:02:19]} Nd4+ {
[%emt 0:02:02]} 55. Ke4 {[%emt 0:00:12]} Ne6 {[%emt 0:00:13]} 56. g5+ {[%emt 0:
01:15]} Ke7 {[%emt 0:01:15]} 57. Ke5 {[%emt 0:01:00] White mates.} Rd8 {
[%emt 0:01:11]} 58. Rxd8 {[%emt 0:00:28]} Nxd8 {[%emt 0:00:05]} 59. g6 {
[%emt 0:00:38] Weighted Error Value: White=0.13 (very precise) /Black=0.52} 1-0

[Event "44th Chess Olympiad Open 2022"]
[Site "Chennai"]
[Date "2022.08.01"]
[Round "4.22"]
[White "Tristan, Leonardo"]
[Black "Tate, Alan"]
[Result "1-0"]
[WhiteElo "2558"]
[BlackElo "2313"]
[Annotator "TA"]
[PlyCount "49"]
[EventDate "2022.??.??"]
[TimeControl "60"]

{[%evp 17,49,56,65,50,37,43,43,29,48,44,50,31,52,54,54,44,62,63,79,75,71,7,13,
0,82,76,80,76,75,72,168,169,347,329]} 1. d4 {[%emt 0:00:03]} d5 {[%emt 0:00:09]
} 2. c4 {[%emt 0:00:11]} e6 {[%emt 0:00:07]} 3. Nc3 {[%emt 0:00:12]} c5 {
[%emt 0:00:16]} 4. cxd5 {[%emt 0:00:18]} cxd4 {[%emt 0:00:15]} 5. Qa4+ {
[%emt 0:00:24]} Bd7 {[%emt 0:00:12]} 6. Qxd4 {[%emt 0:00:07]} exd5 {[%emt 0:00:
00]} 7. Qxd5 {[%emt 0:00:11]} Nf6 {[%emt 0:00:30]} 8. Qd1 {[%emt 0:00:24]} Bc5
{[%emt 0:00:59]} 9. Nf3 {[%emt 0:01:10]} Nc6 {[%emt 0:06:29]} 10. e3 {[%emt 0:
00:00] D32: Tarrasch Defence: Sidelines and lines without g3.} O-O {[%emt 0:00:
00]} 11. Be2 {[%emt 0:00:19]} Qe7 {[%emt 0:00:37]} 12. a3 {[%emt 0:12:27]
White is slightly better.} Rac8 {[%emt 0:12:23]} 13. O-O {[%emt 0:13:07]} Rfd8
{[%emt 0:00:52]} 14. Qc2 {[%emt 0:04:17]} Ne5 {[%emt 0:03:08] 14...Bd6 is
becoming the main line.} 15. Nd4 {[%emt 0:12:26] [#]} Ng6 $146 {[%emt 0:03:15]}
({Predecessor:} 15... Nc6 16. Rd1 g6 17. Nxc6 Bxc6 18. Rxd8+ Rxd8 19. Bd2 Ne4
20. Be1 Nxc3 21. Bxc3 Qg5 {1-0 (34) Turov,M (2566)-Sundararajan,K (2413)
Vaujany 2019}) 16. Rd1 {[%emt 0:03:24]} h5 {[%emt 0:13:07]} 17. b4 {[%emt 0:00:
00]} Bd6 {[%emt 0:01:36]} 18. Bb2 $1 {[%emt 0:00:34]} Ng4 {[%emt 0:09:01] [#]
Threatens to win with ...Qh4.} 19. Bxg4 {[%emt 0:11:16]} (19. g3 $1 $16) 19...
Bxg4 $11 {[%emt 0:01:15]} 20. Nf5 {[%emt 0:02:22] Pair of Knights!} Qg5 {
[%emt 0:33:16]} (20... Bxh2+ $1 $11 21. Kxh2 Qe5+ 22. f4 (22. Ng3 $2 Bxd1 23.
Rxd1 Rxd1 $19) 22... Bxf5) 21. Rxd6 $16 {[%emt 0:07:27]} (21. Nxd6 Bf3 22. g3
Qg4 $14) 21... Bxf5 {[%emt 0:00:47]} 22. Rxd8+ {[%emt 0:00:40]} Rxd8 {[%emt 0:
00:00]} 23. Ne4 {[%emt 0:02:32][%cal Yc2c3]} Qg4 {[%emt 0:00:19] [#]} (23...
Nh4 $16 {was called for.} 24. Nxg5 Bxc2) 24. f3 $1 $18 {[%emt 0:00:48]} Bxe4 $2
{[%emt 0:00:08]} (24... Qg5 {might work better.}) 25. Qc3 {[%emt 0:00:27]
Weighted Error Value: White=0.10 (very precise) /Black=0.35} (25. fxg4 $2 {
too greedy.} Bxc2 26. gxh5 Nh4 $19) ({Not} 25. fxe4 Rc8 26. Qd1 Qxe4 $11) ({
Worse is} 25. Qxe4 Qxe4 26. fxe4 Rd2 $11) 1-0

[Event "44th Chess Olympiad Open 2022"]
[Site "Chennai"]
[Date "2022.08.01"]
[Round "4.22"]
[White "Olson, Hamish"]
[Black "Krysa, Leandro"]
[Result "0-1"]
[WhiteElo "2343"]
[BlackElo "2515"]
[Annotator "TA"]
[PlyCount "56"]
[EventDate "2022.??.??"]
[TimeControl "60"]

{[%evp 11,56,23,27,30,32,0,0,0,0,0,0,6,6,0,14,8,2,1,4,3,56,50,47,47,40,46,65,0,
46,35,43,22,13,21,3,0,0,-159,-138,-137,-136,-543,-543,-543,-543,-516,-497]} 1.
d4 {[%emt 0:00:05]} Nf6 {[%emt 0:00:19]} 2. Nf3 {[%emt 0:00:09]} d5 {[%emt 0:
00:00]} 3. c4 {[%emt 0:00:08]} e6 {[%emt 0:00:20]} 4. g3 {[%emt 0:00:07]} dxc4
{[%emt 0:11:25]} 5. Bg2 {[%emt 0:00:38]} Bb4+ {[%emt 0:01:59]} 6. Bd2 {[%emt 0:
00:00]} a5 {[%emt 0:00:06]} 7. Qc2 {[%emt 0:02:02] E04: Open Catalan: 5 Nf3.}
Bxd2+ {[%emt 0:03:26]} 8. Nbxd2 {[%emt 0:00:16]} b5 {[%emt 0:01:21]} 9. O-O {
[%emt 0:05:03] The position is equal.} O-O {[%emt 0:06:01]} 10. b3 {[%emt 0:00:
00]} cxb3 {[%emt 0:00:43]} 11. Nxb3 {[%emt 0:00:16]} Bb7 {[%emt 0:09:55]} 12.
Rfc1 {[%emt 0:03:12]} Be4 {[%emt 0:14:35]} 13. Qxc7 {[%emt 0:08:11]} Nbd7 {
[%emt 0:06:02]} 14. Qxd8 {[%emt 0:06:45]} Rfxd8 {[%emt 0:01:21]} 15. a4 {
[%emt 0:02:34]} b4 {[%emt 0:09:43]} ({Black should try} 15... Bd5 $11 16. Nfd2
Nb6) 16. Nfd2 $1 $14 {[%emt 0:00:42]} Bxg2 {[%emt 0:15:01]} 17. Kxg2 {[%emt 0:
00:00]} Nd5 {[%emt 0:00:25]} 18. Nc4 {[%emt 0:03:48] [#]} Nc3 $146 {[%emt 0:00:
00]} ({Predecessor:} 18... Rdc8 19. Nbxa5 Kf8 20. e3 Nc3 21. Nd6 Rc7 22. Nb3
Ke7 23. Ne4 f5 24. Nxc3 Rxc3 25. Rxc3 bxc3 {1-0 (57) Valak,A (2432)-Grabowski,
B (1986) ICCF email 2010}) 19. e3 {[%emt 0:01:03]} (19. Ncxa5 $14 Rdc8 20. Nb7)
19... Ra6 {[%emt 0:08:01]} (19... Rdc8 $11 20. Nbxa5 Ra6) 20. Ncxa5 {[%emt 0:
00:00]} ({Much worse is} 20. Nbxa5 Rc8 $11) 20... Rda8 {[%emt 0:01:10][%cal
Yd8a8,Ya8a4,Ya4c4]} 21. Nc4 {[%emt 0:07:31] Black must now prevent a5.} Rxa4 {
[%emt 0:00:34]} 22. Rxa4 {[%emt 0:00:34]} Rxa4 {[%emt 0:00:39]} 23. Rc2 {
[%emt 0:04:57]} f5 {[%emt 0:02:00]} 24. Nc1 $2 {[%emt 0:08:25] [#]} (24. Rb2
$11) 24... b3 $1 $17 {[%emt 0:01:01][%cal Yb4b3,Yb3b2] Black is more active.}
25. Rxc3 {[%emt 0:00:55]} Rxc4 $1 {[%emt 0:00:13] Remove Defender, Promotion}
26. Rxc4 {[%emt 0:00:10]} (26. Ne2 $17 {was the crucial defense.} Rb4 27. Rc7)
26... b2 $19 {[%emt 0:00:33] Black is clearly winning.} 27. Rc8+ {[%emt 0:00:
14]} Kf7 {[%emt 0:02:02]} 28. Rc7 {[%emt 0:00:24]} Ke8 {[%emt 0:00:22]
Weighted Error Value: White=0.45/Black=0.07 (flawless)} 0-1